[Event "SELL Games"]
[Site "Tartu, Estonia"]
[Date "2023.05.20"]
[Round "6.6"]
[White "Mikelsons, Mikelis-Emils"]
[Black "Vanagas, Tadas"]
[Result "0-1"]
[TimeControl "15min + 10sec per move each"]
[WhiteFideId "11607475"]
[BlackFideId "12805467"]
[WhiteElo "1877"]
[BlackElo "2225"]

1. c4 {[%clk 00:15:19]} Nf6 {[%clk 00:15:17]} {[%emt 00:00:03]} 2. d4 {[%clk
00:15:21]} {[%emt 00:00:08]} g6 {[%clk 00:15:25]} {[%emt 00:00:02]} 3. Nc3
{[%clk 00:15:29]} {[%emt 00:00:02]} d5 {[%clk 00:15:34]} {[%emt 00:00:01]} 4.
cxd5 {[%clk 00:15:37]} {[%emt 00:00:02]} Nxd5 {[%clk 00:15:43]} 5. Bd2 {[%clk
00:15:46]} {[%emt 00:00:01]} Bg7 {[%clk 00:15:49]} {[%emt 00:00:04]} 6. e4
{[%clk 00:15:54]} {[%emt 00:00:02]} Nb6 {[%clk 00:15:33]} {[%emt 00:00:25]} 7.
d5 {[%clk 00:15:25]} {[%emt 00:00:39]} c6 {[%clk 00:15:22]} {[%emt 00:00:21]} 8.
a4 {[%clk 00:14:22]} {[%emt 00:01:13]} cxd5 {[%clk 00:14:33]} {[%emt 00:00:59]}
9. a5 {[%clk 00:14:31]} {[%emt 00:00:01]} Nc4 {[%clk 00:14:42]} 10. Bxc4 {[%clk
00:14:39]} {[%emt 00:00:02]} dxc4 {[%clk 00:14:51]} 11. Qa4+ {[%clk 00:14:47]}
{[%emt 00:00:02]} Nc6 {[%clk 00:14:44]} {[%emt 00:00:17]} 12. Nf3 {[%clk
00:13:23]} {[%emt 00:01:34]} O-O {[%clk 00:14:43]} {[%emt 00:00:12]} 13. a6
{[%clk 00:11:26]} {[%emt 00:02:07]} Qb6 {[%clk 00:10:04]} {[%emt 00:04:49]} 14.
axb7 {[%clk 00:09:14]} {[%emt 00:02:22]} Bxb7 {[%clk 00:10:11]} {[%emt
00:00:03]} 15. O-O {[%clk 00:09:14]} {[%emt 00:00:09]} a5 {[%clk 00:08:32]}
{[%emt 00:01:50]} 16. Nd5 {[%clk 00:06:34]} {[%emt 00:02:49]} Qb3 {[%clk
00:08:35]} {[%emt 00:00:07]} 17. Bc3 {[%clk 00:06:36]} {[%emt 00:00:08]} Bxc3
{[%clk 00:04:42]} {[%emt 00:04:03]} 18. bxc3 {[%clk 00:06:44]} {[%emt
00:00:02]} e6 {[%clk 00:04:51]} {[%emt 00:00:01]} 19. Nf6+ {[%clk 00:05:15]}
{[%emt 00:01:39]} Kg7 {[%clk 00:05:01]} {[%emt 00:00:01]} 20. Nd7 {[%clk
00:05:24]} Rfd8 {[%clk 00:04:58]} {[%emt 00:00:13]} 21. Nc5 {[%clk 00:05:27]}
{[%emt 00:00:07]} Qxa4 {[%clk 00:05:03]} {[%emt 00:00:06]} 22. Rxa4 {[%clk
00:05:35]} {[%emt 00:00:02]} Ba6 {[%clk 00:04:53]} {[%emt 00:00:20]} 23. Nxa6
{[%clk 00:04:53]} Rxa6 {[%clk 00:05:02]} 24. Rfa1 {[%clk 00:05:01]} {[%emt
00:00:02]} h6 {[%clk 00:01:59]} {[%emt 00:03:13]} 25. h4 {[%clk 00:05:03]}
{[%emt 00:00:07]} Kf6 {[%clk 00:02:00]} {[%emt 00:00:09]} 26. Rxc4 {[%clk
00:05:09]} {[%emt 00:00:04]} g5 {[%clk 00:02:09]} {[%emt 00:00:01]} 27. hxg5+
{[%clk 00:02:02]} {[%emt 00:03:17]} hxg5 {[%clk 00:02:18]} {[%emt 00:00:01]} 28.
e5+ {[%clk 00:02:10]} {[%emt 00:00:02]} Nxe5 {[%clk 00:02:03]} {[%emt
00:00:25]} 29. Nxe5 {[%clk 00:02:18]} {[%emt 00:00:02]} Kxe5 {[%clk 00:02:11]}
{[%emt 00:00:02]} 30. Rc5+ {[%clk 00:02:27]} {[%emt 00:00:01]} Rd5 {[%clk
00:02:20]} {[%emt 00:00:01]} 31. Rc7 {[%clk 00:02:14]} {[%emt 00:00:23]} Kf6
{[%clk 00:02:06]} {[%emt 00:00:25]} 32. Ra4 {[%clk 00:02:10]} {[%emt 00:00:13]}
Rb6 {[%clk 00:01:29]} {[%emt 00:00:47]} 33. Kh2 {[%clk 00:01:21]} {[%emt
00:00:59]} Rb2 {[%clk 00:01:34]} {[%emt 00:00:05]} 34. Rg4 {[%clk 00:01:05]}
{[%emt 00:00:26]} Rxf2 {[%clk 00:01:40]} {[%emt 00:00:05]} 35. c4 {[%clk
00:00:48]} {[%emt 00:00:28]} Rdf5 {[%clk 00:01:43]} {[%emt 00:00:07]} 36. c5
{[%clk 00:00:49]} {[%emt 00:00:08]} Rc2 {[%clk 00:01:50]} {[%emt 00:00:03]} 37.
c6 {[%clk 00:00:31]} {[%emt 00:00:29]} Rfc5 {[%clk 00:01:59]} {[%emt 00:00:01]}
38. Ra4 {[%clk 00:00:39]} {[%emt 00:00:02]} Rxc6 {[%clk 00:02:02]} {[%emt
00:00:07]} 0-1

[Event "SELL Games"]
[Site "Tartu, Estonia"]
[Date "2023.05.20"]
[Round "6.7"]
[White "Piksis, Davids"]
[Black "Maciuityte, Greta"]
[Result "1-0"]
[TimeControl "15min + 10sec per move each"]
[WhiteFideId "11609117"]
[BlackFideId "12806765"]
[WhiteElo "1770"]
[BlackElo "1715"]

1. c4 {[%clk 00:15:16]} {[%emt 00:00:03]} g6 {[%clk 00:14:36]} {[%emt
00:00:44]} 2. d4 {[%clk 00:15:14]} {[%emt 00:00:13]} Bg7 {[%clk 00:14:41]}
{[%emt 00:00:04]} 3. e4 {[%clk 00:15:23]} {[%emt 00:00:02]} d6 {[%clk
00:14:37]} {[%emt 00:00:14]} 4. Nc3 {[%clk 00:15:11]} {[%emt 00:00:22]} Nf6
{[%clk 00:14:40]} {[%emt 00:00:06]} 5. Nf3 {[%clk 00:15:01]} {[%emt 00:00:21]}
O-O {[%clk 00:14:40]} {[%emt 00:00:10]} 6. g3 {[%clk 00:14:20]} {[%emt
00:00:51]} Nc6 {[%clk 00:14:39]} {[%emt 00:00:10]} 7. Bg2 {[%clk 00:14:26]}
{[%emt 00:00:04]} Bg4 {[%clk 00:14:16]} {[%emt 00:00:33]} 8. h3 {[%clk
00:14:17]} {[%emt 00:00:20]} Bxf3 {[%clk 00:13:55]} {[%emt 00:00:31]} 9. Bxf3
{[%clk 00:14:25]} {[%emt 00:00:02]} Qd7 {[%clk 00:13:28]} {[%emt 00:00:37]} 10.
Bg2 {[%clk 00:14:17]} {[%emt 00:00:17]} Ne8 {[%clk 00:13:09]} {[%emt 00:00:28]}
11. Be3 {[%clk 00:14:16]} {[%emt 00:00:11]} f5 {[%clk 00:12:55]} {[%emt
00:00:25]} 12. O-O {[%clk 00:13:48]} {[%emt 00:00:38]} Nf6 {[%clk 00:11:37]}
{[%emt 00:01:28]} 13. Kh2 {[%clk 00:13:16]} {[%emt 00:00:42]} Rab8 {[%clk
00:10:24]} {[%emt 00:01:23]} 14. Qd2 {[%clk 00:12:23]} {[%emt 00:01:03]} e5
{[%clk 00:07:52]} {[%emt 00:02:41]} 15. d5 {[%clk 00:08:55]} {[%emt 00:03:39]}
Nd4 {[%clk 00:07:07]} {[%emt 00:00:55]} 16. f4 {[%clk 00:08:21]} {[%emt
00:00:43]} c5 {[%clk 00:06:06]} {[%emt 00:01:11]} 17. dxc6 {[%clk 00:07:48]}
{[%emt 00:00:43]} bxc6 {[%clk 00:05:10]} {[%emt 00:01:06]} 18. b3 {[%clk
00:05:36]} {[%emt 00:02:21]} fxe4 {[%clk 00:02:31]} {[%emt 00:02:50]} 19. fxe5
{[%clk 00:05:00]} {[%emt 00:00:47]} dxe5 {[%clk 00:02:27]} {[%emt 00:00:13]} 20.
Nxe4 {[%clk 00:05:02]} {[%emt 00:00:08]} Nxe4 {[%clk 00:02:07]} {[%emt
00:00:30]} 21. Bxe4 {[%clk 00:05:09]} {[%emt 00:00:03]} c5 {[%clk 00:02:16]}
{[%emt 00:00:02]} 22. Kg2 {[%clk 00:04:37]} {[%emt 00:00:41]} Rbd8 {[%clk
00:01:48]} {[%emt 00:00:38]} 23. Qd3 {[%clk 00:04:10]} {[%emt 00:00:36]} Nf5
{[%clk 00:00:56]} {[%emt 00:01:03]} 24. Bd5+ {[%clk 00:04:13]} {[%emt
00:00:06]} Kh8 {[%clk 00:01:02]} {[%emt 00:00:04]} 25. Bxc5 {[%clk 00:02:40]}
{[%emt 00:01:43]} Rf6 {[%clk 00:01:10]} {[%emt 00:00:02]} 26. Rae1 {[%clk
00:02:22]} {[%emt 00:00:28]} Qc7 {[%clk 00:01:13]} {[%emt 00:00:08]} 27. Bb4
{[%clk 00:02:16]} {[%emt 00:00:15]} Ra6 {[%clk 00:00:38]} {[%emt 00:00:45]} 28.
Rf2 {[%clk 00:01:38]} {[%emt 00:00:48]} Re8 {[%clk 00:00:43]} {[%emt 00:00:06]}
29. Bc3 {[%clk 00:01:24]} {[%emt 00:00:20]} Rd6 {[%clk 00:00:24]} {[%emt
00:00:33]} 30. Rfe2 {[%clk 00:00:55]} {[%emt 00:00:40]} Rdd8 {[%clk 00:00:33]}
{[%emt 00:00:01]} 31. Re4 {[%clk 00:00:31]} {[%emt 00:00:34]} Qd6 {[%clk
00:00:33]} {[%emt 00:00:10]} 32. Qe2 {[%clk 00:00:24]} {[%emt 00:00:17]} Re7
{[%clk 00:00:17]} {[%emt 00:00:27]} 33. Bxe5 {[%clk 00:00:28]} {[%emt
00:00:05]} Bxe5 {[%clk 00:00:25]} {[%emt 00:00:02]} 34. Rxe5 {[%clk 00:00:37]}
{[%emt 00:00:02]} Rxe5 {[%clk 00:00:34]} {[%emt 00:00:01]} 35. Qxe5+ {[%clk
00:00:45]} {[%emt 00:00:01]} Qxe5 {[%clk 00:00:42]} {[%emt 00:00:02]} 36. Rxe5
{[%clk 00:00:54]} {[%emt 00:00:01]} Rd7 {[%clk 00:00:48]} {[%emt 00:00:04]} 37.
Kf3 {[%clk 00:00:23]} {[%emt 00:00:40]} Nd4+ {[%clk 00:00:56]} {[%emt
00:00:03]} 38. Ke4 {[%clk 00:00:28]} {[%emt 00:00:05]} Nf5 {[%clk 00:01:02]}
{[%emt 00:00:04]} 39. g4 {[%clk 00:00:20]} {[%emt 00:00:17]} Nd6+ {[%clk
00:01:04]} {[%emt 00:00:08]} 40. Ke3 {[%clk 00:00:23]} {[%emt 00:00:08]} Kg7
{[%clk 00:01:11]} {[%emt 00:00:03]} 41. b4 {[%clk 00:00:20]} {[%emt 00:00:13]}
Nc8 {[%clk 00:00:57]} {[%emt 00:00:24]} 42. c5 {[%clk 00:00:17]} {[%emt
00:00:13]} Ne7 {[%clk 00:00:56]} {[%emt 00:00:11]} 43. Bc4 {[%clk 00:00:13]}
{[%emt 00:00:14]} Rb7 {[%clk 00:01:00]} {[%emt 00:00:06]} 44. a3 {[%clk
00:00:21]} {[%emt 00:00:02]} Rc7 {[%clk 00:00:49]} {[%emt 00:00:20]} 45. Re6
{[%clk 00:00:21]} {[%emt 00:00:10]} Nc6 {[%clk 00:00:49]} {[%emt 00:00:11]} 46.
Ke4 {[%clk 00:00:19]} {[%emt 00:00:11]} Nd8 {[%clk 00:00:53]} {[%emt 00:00:06]}
47. Rd6 {[%clk 00:00:22]} {[%emt 00:00:07]} Nb7 {[%clk 00:00:54]} {[%emt
00:00:10]} 48. Rd5 {[%clk 00:00:25]} {[%emt 00:00:06]} Re7+ {[%clk 00:01:00]}
{[%emt 00:00:05]} 49. Re5 {[%clk 00:00:33]} {[%emt 00:00:02]} Rd7 {[%clk
00:01:08]} {[%emt 00:00:01]} 50. c6 {[%clk 00:00:32]} {[%emt 00:00:11]} Nd6+
{[%clk 00:01:17]} {[%emt 00:00:02]} 51. Kd5 {[%clk 00:00:38]} {[%emt 00:00:04]}
Rd8 {[%clk 00:00:35]} {[%emt 00:00:52]} 52. Re7+ {[%clk 00:00:37]} {[%emt
00:00:10]} Kf6 {[%clk 00:00:42]} {[%emt 00:00:04]} 53. Re6+ {[%emt 00:01:07]}
1-0

[Event "SELL Games"]
[Site "Tartu, Estonia"]
[Date "2023.05.20"]
[Round "6.8"]
[White "Vanagaite, Giedre"]
[Black "Galdikaite, Greta"]
[Result "1-0"]
[TimeControl "15min + 10sec per move each"]
[WhiteTitle "WFM"]
[WhiteFideId "12800546"]
[BlackFideId "12819956"]
[WhiteElo "1995"]
[BlackElo "1195"]

1. d4 d5 2. Nf3 Nc6 3. Bf4 Nf6 4. e3 a6 5. c4 Bf5 6. Nc3 e6 7. a3 Ne4 8. Be2
Be7 9. O-O O-O 10. Nxe4 Bxe4 11. c5 b5 12. Qd2 Nb8 13. a4 c6 14. axb5 cxb5 15.
Bxb5 Qc8 16. Bxb8 Qxb8 17. Bxa6 Qa7 18. b4 Rfb8 19. Ne5 {[%clk 00:15:19]} 1-0

[Event "SELL Games"]
[Site "Tartu, Estonia"]
[Date "2023.05.20"]
[Round "7.1"]
[White "Stauskas, Lukas"]
[Black "Piksis, Davids"]
[Result "1-0"]
[TimeControl "15min + 10sec per move each"]
[WhiteFideId "12808148"]
[BlackFideId "11609117"]
[WhiteElo "2296"]
[BlackElo "1770"]

1. b3 {[%clk 00:15:18]} {[%emt 00:00:02]} e5 {[%clk 00:15:18]} {[%emt
00:00:02]} 2. Bb2 {[%clk 00:15:26]} {[%emt 00:00:02]} Nc6 {[%clk 00:15:26]}
{[%emt 00:00:02]} 3. e3 {[%clk 00:15:34]} {[%emt 00:00:02]} d5 {[%clk
00:15:32]} {[%emt 00:00:04]} 4. Bb5 {[%clk 00:15:41]} {[%emt 00:00:03]} Bd6
{[%clk 00:15:35]} {[%emt 00:00:08]} 5. Nf3 {[%clk 00:15:48]} {[%emt 00:00:03]}
Qe7 {[%clk 00:15:37]} {[%emt 00:00:07]} 6. c4 {[%clk 00:14:48]} {[%emt
00:01:11]} Nf6 {[%clk 00:14:12]} {[%emt 00:01:35]} 7. c5 {[%clk 00:14:01]}
{[%emt 00:00:57]} Bxc5 {[%clk 00:13:56]} {[%emt 00:00:26]} 8. Nxe5 {[%clk
00:14:08]} {[%emt 00:00:02]} Bd7 {[%clk 00:12:03]} {[%emt 00:02:03]} 9. Nxd7
{[%clk 00:14:15]} {[%emt 00:00:03]} Qxd7 {[%clk 00:11:32]} {[%emt 00:00:41]} 10.
O-O {[%clk 00:14:00]} {[%emt 00:00:25]} Be7 {[%clk 00:10:08]} {[%emt 00:01:35]}
11. Qc2 {[%clk 00:13:08]} {[%emt 00:01:02]} a6 {[%clk 00:08:49]} {[%emt
00:01:30]} 12. Bxc6 {[%clk 00:13:15]} {[%emt 00:00:03]} Qxc6 {[%clk 00:08:54]}
{[%emt 00:00:04]} 13. Qxc6+ {[%clk 00:13:13]} {[%emt 00:00:12]} bxc6 {[%clk
00:09:03]} {[%emt 00:00:01]} 14. Rc1 {[%clk 00:12:57]} {[%emt 00:00:25]} Kd7
{[%clk 00:09:10]} {[%emt 00:00:03]} 15. Nc3 {[%clk 00:12:58]} {[%emt 00:00:10]}
a5 {[%clk 00:05:55]} {[%emt 00:03:25]} 16. Na4 {[%clk 00:12:51]} {[%emt
00:00:17]} Rhg8 {[%clk 00:05:31]} {[%emt 00:00:34]} 17. Rc2 {[%clk 00:12:51]}
{[%emt 00:00:11]} Ra6 {[%clk 00:05:36]} {[%emt 00:00:06]} 18. Rac1 {[%clk
00:12:54]} {[%emt 00:00:06]} Ne4 {[%clk 00:04:54]} {[%emt 00:00:52]} 19. d3
{[%clk 00:13:01]} {[%emt 00:00:04]} Ng5 {[%clk 00:04:59]} {[%emt 00:00:04]} 20.
f3 {[%clk 00:12:08]} {[%emt 00:01:02]} f5 {[%clk 00:04:55]} {[%emt 00:00:15]}
21. Kf2 {[%clk 00:11:22]} {[%emt 00:00:56]} h5 {[%clk 00:04:47]} {[%emt
00:00:18]} 22. h4 {[%clk 00:10:43]} {[%emt 00:00:49]} Ne6 {[%clk 00:04:55]}
{[%emt 00:00:02]} 23. g3 {[%clk 00:10:51]} {[%emt 00:00:02]} g6 {[%clk
00:03:55]} {[%emt 00:01:10]} 24. f4 {[%clk 00:10:25]} {[%emt 00:00:37]} Rf8
{[%clk 00:03:34]} {[%emt 00:00:32]} 25. Kf3 {[%clk 00:10:13]} {[%emt 00:00:21]}
Bf6 {[%clk 00:03:15]} {[%emt 00:00:29]} 26. e4 {[%clk 00:08:42]} {[%emt
00:01:41]} Bxb2 {[%clk 00:03:13]} {[%emt 00:00:12]} 27. Rxb2 {[%clk 00:08:50]}
{[%emt 00:00:02]} Rb8 {[%clk 00:02:45]} {[%emt 00:00:38]} 28. Ke3 {[%clk
00:08:32]} {[%emt 00:00:28]} Rb4 {[%clk 00:02:25]} {[%emt 00:00:31]} 29. exf5
{[%clk 00:06:38]} {[%emt 00:02:03]} gxf5 {[%clk 00:02:33]} {[%emt 00:00:02]} 30.
Re2 {[%clk 00:06:27]} {[%emt 00:00:21]} Ra8 {[%clk 00:02:05]} {[%emt 00:00:38]}
31. Kf2 {[%clk 00:06:26]} {[%emt 00:00:12]} Rd4 {[%clk 00:01:35]} {[%emt
00:00:40]} 32. Rce1 {[%clk 00:06:03]} {[%emt 00:00:32]} Rxa4 {[%clk 00:00:21]}
{[%emt 00:01:24]} 33. bxa4 {[%clk 00:06:00]} {[%emt 00:00:13]} Nc5 {[%clk
00:00:30]} 34. Rd2 {[%clk 00:03:50]} {[%emt 00:02:20]} Rb8 {[%clk 00:00:22]}
{[%emt 00:00:19]} 35. Re5 {[%clk 00:03:43]} {[%emt 00:00:17]} Rf8 {[%clk
00:00:21]} {[%emt 00:00:11]} 36. Kf3 {[%clk 00:02:48]} {[%emt 00:01:04]} Rf7
{[%clk 00:00:13]} {[%emt 00:00:18]} 37. Ke2 {[%clk 00:01:31]} {[%emt 00:01:27]}
Rf8 {[%clk 00:00:17]} {[%emt 00:00:07]} 38. Kd1 {[%clk 00:01:05]} {[%emt
00:00:36]} Nxa4 {[%clk 00:00:12]} {[%emt 00:00:15]} 39. Kc2 {[%clk 00:01:10]}
{[%emt 00:00:04]} Nc5 {[%clk 00:00:18]} {[%emt 00:00:04]} 40. Rde2 {[%clk
00:01:14]} {[%emt 00:00:07]} Rf7 {[%clk 00:00:19]} {[%emt 00:00:09]} 41. Re8
{[%clk 00:01:17]} {[%emt 00:00:07]} Rg7 {[%clk 00:00:12]} {[%emt 00:00:18]} 42.
R8e3 {[%clk 00:00:51]} {[%emt 00:00:35]} Nb7 {[%clk 00:00:15]} {[%emt
00:00:07]} 43. Re6 {[%clk 00:00:35]} {[%emt 00:00:25]} Nc5 {[%clk 00:00:15]}
{[%emt 00:00:11]} 44. Rh6 {[%clk 00:00:36]} {[%emt 00:00:08]} Rxg3 {[%clk
00:00:17]} {[%emt 00:00:09]} 45. Rxh5 {[%clk 00:00:41]} {[%emt 00:00:05]} Nxd3
{[%clk 00:00:19]} {[%emt 00:00:09]} 46. Rxf5 {[%clk 00:00:41]} {[%emt
00:00:10]} Nb4+ {[%clk 00:00:12]} {[%emt 00:00:17]} 47. Kb2 {[%clk 00:00:48]}
{[%emt 00:00:03]} Nd3+ {[%clk 00:00:21]} {[%emt 00:00:02]} 48. Kb1 {[%clk
00:00:50]} {[%emt 00:00:08]} Rg4 {[%clk 00:00:13]} {[%emt 00:00:17]} 49. h5
{[%clk 00:00:49]} {[%emt 00:00:11]} Nxf4 {[%clk 00:00:17]} {[%emt 00:00:07]} 50.
Rh2 {[%clk 00:00:54]} {[%emt 00:00:05]} d4 {[%clk 00:00:16]} {[%emt 00:00:11]}
51. h6 {[%clk 00:01:01]} {[%emt 00:00:02]} d3 {[%clk 00:00:18]} {[%emt
00:00:09]} 52. Rxf4 {[%clk 00:00:46]} {[%emt 00:00:25]} Rxf4 {[%clk 00:00:24]}
{[%emt 00:00:04]} 53. h7 {[%clk 00:00:55]} Rf1+ {[%clk 00:00:14]} {[%emt
00:00:21]} 54. Kb2 {[%clk 00:01:02]} {[%emt 00:00:03]} Rf8 {[%clk 00:00:12]}
{[%emt 00:00:11]} 55. h8=Q {[%clk 00:01:08]} {[%emt 00:00:04]} Rxh8 {[%clk
00:00:21]} {[%emt 00:00:01]} 56. Rxh8 {[%clk 00:01:17]} {[%emt 00:00:01]} Kd6
{[%clk 00:00:24]} {[%emt 00:00:07]} 57. Kc3 {[%clk 00:01:26]} {[%emt 00:00:02]}
Kc5 {[%clk 00:00:33]} {[%emt 00:00:01]} 58. Rh5+ {[%clk 00:01:34]} {[%emt
00:00:02]} Kb6 {[%clk 00:00:42]} {[%emt 00:00:01]} 59. Kxd3 {[%clk 00:01:43]}
{[%emt 00:00:01]} 1-0

[Event "SELL Games"]
[Site "Tartu, Estonia"]
[Date "2023.05.20"]
[Round "7.2"]
[White "Vardanyan, Aras"]
[Black "Simkunaite, Gabija"]
[Result "1-0"]
[TimeControl "15min + 10sec per move each"]
[WhiteTitle "FM"]
[BlackTitle "WFM"]
[WhiteFideId "12808792"]
[BlackFideId "12808253"]
[WhiteElo "2255"]
[BlackElo "1964"]

1. c4 {[%clk 00:15:18]} {[%emt 00:00:02]} Nf6 {[%clk 00:15:14]} {[%emt
00:00:06]} 2. Nc3 {[%clk 00:15:26]} {[%emt 00:00:02]} e6 {[%clk 00:15:22]}
{[%emt 00:00:03]} 3. e4 {[%clk 00:15:34]} {[%emt 00:00:01]} d6 {[%clk
00:14:20]} {[%emt 00:01:12]} 4. d4 {[%clk 00:15:42]} {[%emt 00:00:03]} Be7
{[%clk 00:14:16]} {[%emt 00:00:14]} 5. Nf3 {[%clk 00:15:50]} {[%emt 00:00:02]}
O-O {[%clk 00:14:16]} {[%emt 00:00:09]} 6. Be2 {[%clk 00:15:59]} {[%emt
00:00:01]} Nbd7 {[%clk 00:14:02]} {[%emt 00:00:25]} 7. O-O {[%clk 00:16:06]}
{[%emt 00:00:02]} b6 {[%clk 00:13:38]} {[%emt 00:00:34]} 8. Re1 {[%clk
00:16:13]} {[%emt 00:00:02]} Bb7 {[%clk 00:13:24]} {[%emt 00:00:25]} 9. Bf1
{[%clk 00:16:21]} {[%emt 00:00:02]} h6 {[%clk 00:12:53]} {[%emt 00:00:41]} 10.
h3 {[%clk 00:16:30]} {[%emt 00:00:02]} Re8 {[%clk 00:12:49]} {[%emt 00:00:14]}
11. Qc2 {[%clk 00:16:23]} {[%emt 00:00:17]} e5 {[%clk 00:12:19]} {[%emt
00:00:39]} 12. d5 {[%clk 00:16:29]} {[%emt 00:00:04]} Rc8 {[%clk 00:11:51]}
{[%emt 00:00:38]} 13. b4 {[%clk 00:16:36]} {[%emt 00:00:04]} c5 {[%clk
00:11:16]} {[%emt 00:00:45]} 14. dxc6 {[%clk 00:16:40]} {[%emt 00:00:06]} Bxc6
{[%clk 00:11:23]} {[%emt 00:00:03]} 15. Be3 {[%clk 00:16:36]} {[%emt 00:00:14]}
Nf8 {[%clk 00:11:17]} {[%emt 00:00:16]} 16. Rad1 {[%clk 00:16:40]} {[%emt
00:00:06]} Qc7 {[%clk 00:11:14]} {[%emt 00:00:13]} 17. Qb1 {[%clk 00:16:20]}
{[%emt 00:00:30]} Qb7 {[%clk 00:10:31]} {[%emt 00:00:52]} 18. Nd2 {[%clk
00:15:47]} {[%emt 00:00:43]} Ne6 {[%clk 00:10:13]} {[%emt 00:00:28]} 19. Nd5
{[%clk 00:15:18]} {[%emt 00:00:39]} Ng5 {[%clk 00:09:03]} {[%emt 00:01:20]} 20.
Nxe7+ {[%clk 00:14:43]} {[%emt 00:00:45]} Rxe7 {[%clk 00:08:59]} {[%emt
00:00:13]} 21. f3 {[%clk 00:14:51]} {[%emt 00:00:02]} Ne6 {[%clk 00:08:35]}
{[%emt 00:00:34]} 22. Nb3 {[%clk 00:14:34]} {[%emt 00:00:28]} Rd8 {[%clk
00:08:13]} {[%emt 00:00:32]} 23. Rd2 {[%clk 00:14:38]} {[%emt 00:00:06]} g5
{[%clk 00:07:44]} {[%emt 00:00:39]} 24. Red1 {[%clk 00:14:43]} {[%emt
00:00:04]} Bxe4 {[%clk 00:07:21]} {[%emt 00:00:33]} 25. fxe4 {[%clk 00:14:46]}
{[%emt 00:00:08]} Nxe4 {[%clk 00:07:29]} {[%emt 00:00:02]} 26. Rd3 {[%clk
00:14:08]} {[%emt 00:00:48]} f5 {[%clk 00:07:08]} {[%emt 00:00:31]} 27. Qc2
{[%clk 00:12:49]} {[%emt 00:01:29]} Kg7 {[%clk 00:05:57]} {[%emt 00:01:21]} 28.
c5 {[%clk 00:12:39]} {[%emt 00:00:21]} bxc5 {[%clk 00:05:33]} {[%emt 00:00:34]}
29. bxc5 {[%clk 00:12:47]} {[%emt 00:00:02]} Rc8 {[%clk 00:05:26]} {[%emt
00:00:16]} 30. Qb2 {[%clk 00:12:31]} {[%emt 00:00:26]} N6xc5 {[%clk 00:05:14]}
{[%emt 00:00:23]} 31. Bxc5 {[%clk 00:12:29]} {[%emt 00:00:13]} dxc5 {[%clk
00:05:15]} {[%emt 00:00:08]} 32. Qa3 {[%clk 00:11:09]} {[%emt 00:01:30]} c4
{[%clk 00:05:02]} {[%emt 00:00:23]} 33. Qxe7+ {[%clk 00:11:10]} {[%emt
00:00:09]} Qxe7 {[%clk 00:04:29]} {[%emt 00:00:42]} 34. Rd7 {[%clk 00:11:18]}
{[%emt 00:00:02]} Kf6 {[%clk 00:04:09]} {[%emt 00:00:31]} 35. Rxe7 {[%clk
00:11:26]} {[%emt 00:00:03]} Kxe7 {[%clk 00:04:17]} {[%emt 00:00:01]} 36. Nc1
{[%clk 00:11:09]} {[%emt 00:00:27]} Nc3 {[%clk 00:04:14]} {[%emt 00:00:12]} 37.
Rd2 {[%clk 00:11:13]} {[%emt 00:00:06]} Ne4 {[%clk 00:03:23]} {[%emt 00:01:01]}
38. Rc2 {[%clk 00:11:21]} {[%emt 00:00:02]} Nd6 {[%clk 00:03:31]} {[%emt
00:00:02]} 39. Rb2 {[%clk 00:11:10]} {[%emt 00:00:22]} Ke6 {[%clk 00:03:31]}
{[%emt 00:00:09]} 40. Kf2 {[%clk 00:11:09]} {[%emt 00:00:11]} e4 {[%clk
00:03:30]} {[%emt 00:00:11]} 41. Ne2 {[%clk 00:11:05]} {[%emt 00:00:14]} Ke5
{[%clk 00:03:24]} {[%emt 00:00:16]} 42. Nc3 {[%clk 00:11:01]} {[%emt 00:00:14]}
f4 {[%clk 00:03:25]} {[%emt 00:00:09]} 43. Ke2 {[%clk 00:10:54]} {[%emt
00:00:18]} h5 {[%clk 00:02:47]} {[%emt 00:00:47]} 44. Kd2 {[%clk 00:10:57]}
{[%emt 00:00:06]} g4 {[%clk 00:02:50]} {[%emt 00:00:08]} 45. Rb4 {[%clk
00:10:24]} {[%emt 00:00:44]} f3 {[%clk 00:01:59]} {[%emt 00:01:00]} 46. Ra4
{[%clk 00:08:48]} {[%emt 00:01:46]} Kd4 {[%clk 00:02:01]} {[%emt 00:00:08]} 47.
Ra5 {[%clk 00:08:09]} {[%emt 00:00:49]} e3+ {[%clk 00:01:43]} {[%emt 00:00:28]}
48. Kc2 {[%clk 00:08:17]} {[%emt 00:00:02]} Rc5 {[%clk 00:01:30]} {[%emt
00:00:23]} 49. Rxa7 {[%clk 00:08:02]} {[%emt 00:00:25]} Rf5 {[%clk 00:01:05]}
{[%emt 00:00:34]} 50. gxf3 {[%clk 00:07:52]} {[%emt 00:00:20]} gxf3 {[%clk
00:00:53]} {[%emt 00:00:22]} 51. Rd7 {[%clk 00:08:01]} {[%emt 00:00:02]} Kc5
{[%clk 00:00:53]} {[%emt 00:00:10]} 52. Rc7+ {[%clk 00:07:28]} {[%emt
00:00:42]} Kd4 {[%clk 00:00:53]} {[%emt 00:00:09]} 53. Rc6 {[%clk 00:07:14]}
{[%emt 00:00:25]} Ke5 {[%clk 00:00:34]} {[%emt 00:00:30]} 54. Rc5+ {[%clk
00:05:46]} {[%emt 00:01:38]} Kf4 {[%clk 00:00:30]} {[%emt 00:00:14]} 55. Rc6
{[%clk 00:05:22]} {[%emt 00:00:34]} Nf7 {[%clk 00:00:20]} {[%emt 00:00:17]} 56.
Rxc4+ {[%clk 00:05:23]} {[%emt 00:00:11]} Kg3 {[%clk 00:00:26]} {[%emt
00:00:04]} 57. Re4 {[%clk 00:04:28]} {[%emt 00:01:05]} Kf2 {[%clk 00:00:20]}
{[%emt 00:00:16]} 58. Nd1 {[%clk 00:04:36]} {[%emt 00:00:02]} Kxf1 {[%clk
00:00:27]} {[%emt 00:00:03]} 59. Nxe3+ {[%clk 00:04:45]} {[%emt 00:00:01]} Kg1
{[%clk 00:00:25]} {[%emt 00:00:11]} 60. Nxf5 {[%clk 00:04:50]} {[%emt
00:00:05]} f2 {[%clk 00:00:25]} {[%emt 00:00:11]} 61. Ne3 {[%clk 00:04:50]}
{[%emt 00:00:10]} Ng5 {[%clk 00:00:20]} {[%emt 00:00:15]} 62. Rh4 {[%clk
00:04:55]} {[%emt 00:00:05]} Nf3 {[%clk 00:00:14]} {[%emt 00:00:16]} 63. Rxh5
{[%clk 00:04:59]} {[%emt 00:00:06]} Kh2 {[%clk 00:00:20]} {[%emt 00:00:04]} 64.
Ng4 {[%clk 00:05:07]} {[%emt 00:00:02]} 1-0